lending/lending_fUSD_20250315
["ID","MTS","AMOUNT","RATE_DAILY","PERIOD"]
[356181613,1742033443522,-174.78,0.00036,31]
[356181614,1742033443532,-174.78,0.00036,31]
[356181616,1742033443541,-174.78,0.00036,31]
[356181618,1742033443550,-174.78,0.00036,31]
[356181620,1742033443559,-174.78,0.00036,31]
[356181622,1742033443568,-174.78,0.00036,31]
[356181624,1742033443577,-174.78,0.00036,31]
[356181625,1742033443587,-174.78,0.00036,31]
[356181626,1742033443596,-174.78,0.00036,31]
[356181627,1742033443605,-174.78,0.00036,31]
[356181628,1742033443614,-174.78,0.00036,31]
[356181629,1742033443623,-150.0,0.00036029,2]
[356181630,1742033443632,-150.0,0.00036045,2]
[356181632,1742033443642,-150.0,0.0003605,2]
[356181633,1742033443651,-150.0,0.00036058,2]
[356181634,1742033443660,-150.0,0.00036058,2]
[356181635,1742033443669,-150.0,0.00036058,2]
[356181636,1742033443678,-150.0,0.00036063,2]
[356181637,1742033443688,-150.0,0.00036103,2]
[356181638,1742033443698,-150.0,0.00036104,2]
[356181639,1742033443708,-150.0,0.00036111,2]
[356181640,1742033443717,-1000.0,0.00036119,7]
[356181641,1742033443726,-150.0,0.0003612,2]
[356181642,1742033443735,-150.0,0.00036133,2]
[356181643,1742033443745,-1000.0,0.00036164,7]
[356181644,1742033443754,-150.0,0.00036183,2]
[356181645,1742033443763,-150.0,0.00036185,2]
[356181646,1742033443773,-150.0,0.00036193,2]
[356181647,1742033443783,-3000.0,0.000362,2]
[356181648,1742033443792,-150.0,0.00036213,2]
[356181649,1742033443801,-491.34949614,0.00036233,2]
[356181650,1742033443810,-150.0,0.00036241,2]
[356181651,1742033443820,-150.0,0.00036256,2]
[356181652,1742033443829,-150.0,0.00036257,2]
[356181653,1742033443838,-150.0,0.00036258,2]
[356181654,1742033443848,-1129.91514658,0.0003626,5]
[356181655,1742033443857,-150.0,0.00036267,7]
[356181656,1742033443868,-150.0,0.00036271,2]
[356181657,1742033443877,-1000.0,0.00036272,7]
[356181658,1742033443886,-1000.0,0.00036276,7]
[356181659,1742033443896,-10052.9126568,0.00036278,2]
[356181660,1742033443905,-150.0,0.00036288,2]
[356181661,1742033443915,-150.0,0.00036297,7]
[356181662,1742033443924,-357.86677639,0.00036316,7]
[356181663,1742033443933,-151.0,0.00036322,7]
[356181664,1742033443943,-150.0,0.00036333,2]
[356181665,1742033443953,-150.0,0.00036341,2]
[356181666,1742033443963,-150.0,0.00036347,2]
[356181667,1742033443972,-150.0,0.00036367,2]
[356181668,1742033443981,-799.74850516,0.00036371,7]
[356181669,1742033443991,-1000.0,0.00036374,7]
[356181670,1742033444000,-150.0,0.00036374,2]
[356181671,1742033444010,-150.91499657,0.00036379,2]
[356181672,1742033444020,-150.0,0.00036395,2]
[356181673,1742033444030,-150.0,0.00036406,2]
[356181674,1742033444040,-150.0,0.00036414,2]
[356181675,1742033444050,-12423.59807773,0.00036427,2]
[356181676,1742033444061,-150.0,0.00036441,2]
[356181677,1742033444071,-150.0,0.00036445,2]
[356181678,1742033444081,-150.0,0.00036457,2]
[356181679,1742033444091,-213.0,0.0003647,2]
[356181680,1742033444100,-150.0,0.0003648,2]
[356181681,1742033444110,-10052.9126568,0.0003649,3]
[356181682,1742033444120,-150.0,0.00036496,2]
[356181683,1742033444130,-150.0,0.00036498,7]
[356181684,1742033444140,-5000.0,0.000365,80]
[356181685,1742033444149,-150.0,0.00036522,2]
[356181686,1742033444159,-150.0,0.00036522,2]
[356181687,1742033444169,-150.0,0.00036546,2]
[356181688,1742033444180,-150.0,0.00036547,2]
[356181689,1742033444190,-150.0,0.00036553,2]
[356181690,1742033444199,-150.0,0.00036555,2]
[356181691,1742033444212,-150.0,0.00036558,2]
[356181692,1742033444222,-150.0,0.00036559,2]
[356181693,1742033444231,-150.0,0.0003656,2]
[356181694,1742033444241,-150.0,0.00036572,2]
[356181695,1742033444251,-150.0,0.00036594,2]
[356181696,1742033444261,-150.0,0.00036614,2]
[356181697,1742033444271,-150.0,0.00036616,2]
[356181698,1742033444280,-5194.3081122,0.0003662,2]
[356181699,1742033444291,-151.0,0.00036621,7]
[356181700,1742033444302,-5000.0,0.00036621,2]
[356181701,1742033444311,-150.0,0.00036623,2]
[356181702,1742033444321,-150.0,0.00036633,2]
[356181703,1742033444331,-150.0,0.00036635,2]
[356181704,1742033444342,-150.0,0.00036639,2]
[356181705,1742033444352,-151.19647291,0.00036659,2]
[356181706,1742033444362,-150.0,0.00036663,2]
[356181707,1742033444371,-150.0,0.00036664,2]
[356181708,1742033444381,-1000.0,0.00036665,7]
[356181709,1742033444392,-150.0,0.00036672,2]
[356181710,1742033444402,-150.0,0.00036682,2]
[356181711,1742033444413,-205.071152,0.00036685,7]
[356181712,1742033444422,-205.071152,0.00036685,7]
[356181713,1742033444432,-151.0,0.00036685,7]
[356181714,1742033444442,-164.88,0.00036697,2]
[356181715,1742033444452,-200.0,0.00036704,10]
[356181716,1742033444462,-150.0,0.00036705,2]
[356181717,1742033444471,-150.0,0.00036705,2]
[356181718,1742033444480,-150.0,0.00036729,2]
[356181719,1742033444490,-211.17759217,0.00036731,2]
[356181720,1742033444499,-150.0,0.00036738,2]
[356181721,1742033444509,-151.0,0.00036752,7]
[356181722,1742033444518,-151.0,0.00036752,7]
[356181723,1742033444527,-151.0,0.00036752,7]
[356181724,1742033444537,-151.0,0.00036752,7]
[356181725,1742033444546,-151.0,0.00036752,7]
[356181726,1742033444556,-151.0,0.00036752,7]
[356181727,1742033444565,-151.0,0.00036752,7]
[356181728,1742033444575,-151.0,0.00036752,7]
[356181729,1742033444584,-151.0,0.00036752,7]
[356181730,1742033444594,-151.0,0.00036752,7]
[356181731,1742033444603,-151.0,0.00036752,7]
[356181732,1742033444612,-151.0,0.00036752,7]
[356181733,1742033444620,-151.0,0.00036752,7]
[356181734,1742033444629,-151.0,0.00036752,7]
[356181735,1742033444638,-151.0,0.00036752,7]
[356181736,1742033444647,-151.0,0.00036752,7]
[356181737,1742033444657,-151.0,0.00036752,7]
[356181738,1742033444666,-151.0,0.00036752,7]
[356181739,1742033444675,-151.0,0.00036752,7]
[356181740,1742033444684,-151.0,0.00036752,7]
[356181741,1742033444693,-151.0,0.00036752,7]
[356181742,1742033444704,-151.0,0.00036752,7]
[356181743,1742033444713,-151.0,0.00036752,7]
[356181744,1742033444722,-151.0,0.00036752,7]
[356181745,1742033444731,-151.0,0.00036752,7]
[356181746,1742033444740,-151.0,0.00036752,7]
[356181747,1742033444751,-151.0,0.00036752,7]
[356181748,1742033444760,-151.0,0.00036752,7]
[356181749,1742033444769,-151.0,0.00036752,7]
[356181750,1742033444779,-151.0,0.00036752,7]
[356181751,1742033444788,-151.0,0.00036752,7]
[356181752,1742033444797,-151.0,0.00036752,7]
[356181753,1742033444806,-151.0,0.00036752,7]
[356181754,1742033444815,-151.0,0.00036752,7]
[356181755,1742033444825,-151.0,0.00036752,7]
[356181756,1742033444834,-151.0,0.00036752,7]
[356181757,1742033444843,-151.0,0.00036752,7]
[356181758,1742033444852,-151.0,0.00036752,7]
[356181759,1742033444862,-230.711641,0.00036752,7]
[356181760,1742033444871,-150.0,0.00036753,2]
[356181761,1742033444880,-150.0,0.00036788,2]
[356181762,1742033444889,-10052.9126568,0.0003679,3]
[356181763,1742033444899,-174.78,0.000368,31]
[356181764,1742033444908,-174.78,0.000368,31]
[356181765,1742033444917,-174.78,0.000368,31]
[356181766,1742033444927,-174.78,0.000368,31]
[356181767,1742033444936,-174.78,0.000368,31]
[356181768,1742033444946,-174.78,0.000368,31]
[356181769,1742033444955,-174.78,0.000368,31]
[356181770,1742033444965,-174.78,0.000368,31]
[356181771,1742033444975,-174.78,0.000368,31]
[356181772,1742033444984,-174.78,0.000368,31]
[356181773,1742033444994,-174.78,0.000368,31]
[356181774,1742033445004,-174.78,0.000368,31]
[356181775,1742033445014,-174.78,0.000368,31]
[356181776,1742033445023,-174.78,0.000368,31]
[356181777,1742033445033,-174.78,0.000368,31]
[356181778,1742033445042,-174.78,0.000368,31]
[356181779,1742033445052,-150.0,0.00036801,2]
[356181780,1742033445062,-150.0,0.00036807,2]
[356181781,1742033445071,-150.0,0.00036808,2]
[356181782,1742033445080,-2000.0,0.00036815,3]
[356181783,1742033445090,-150.0,0.0003682,2]
[356181784,1742033445099,-150.0,0.00036826,2]
[356181785,1742033445109,-1000.0,0.0003683,7]
[356181786,1742033445119,-150.0,0.00036832,2]
[356181787,1742033445128,-150.0,0.00036834,2]
[356181788,1742033445138,-150.0,0.00036836,2]
[356181789,1742033445147,-344.05,0.00036838,2]
[356181790,1742033445157,-150.0,0.0003684,2]
[356181791,1742033445167,-151.0,0.00036846,7]
[356181792,1742033445177,-1000.0,0.00036846,7]
[356181793,1742033445186,-417.17,0.00036861,2]
[356181794,1742033445196,-150.0,0.00036867,2]
[356181795,1742033445206,-758.57643792,0.00036868,7]
[356181796,1742033445216,-150.0,0.00036876,2]
[356181797,1742033445225,-150.0,0.00036894,7]
[356181798,1742033445235,-150.0,0.00036899,2]
[356181799,1742033445245,-1400.0,0.000369,13]
[356181800,1742033445254,-150.0,0.00036903,2]
[356181801,1742033445265,-1000.0,0.0003695,7]
[356181802,1742033445275,-150.0,0.00036954,2]
[356181803,1742033445284,-150.0,0.00036961,2]
[356181804,1742033445293,-150.0,0.00036963,2]
[356181805,1742033445303,-150.0,0.00036968,7]
[356181806,1742033445313,-205.071152,0.0003697,7]
[356181807,1742033445322,-205.071152,0.0003697,7]
[356181808,1742033445331,-151.0,0.0003697,7]
[356181809,1742033445343,-10052.9126568,0.0003697,3]
[356181810,1742033445353,-150.0,0.00036971,2]
[356181811,1742033445363,-20105.8253135,0.00036976,3]
[356181812,1742033445372,-150.0,0.00036979,2]
[356181813,1742033445382,-10052.9126568,0.0003698,3]
[356181814,1742033445394,-150.0,0.00036986,2]
[356181815,1742033445404,-205.071152,0.00036986,7]
[356181816,1742033445413,-205.071152,0.00036986,7]
[356181817,1742033445424,-151.0,0.00036986,7]
[356181818,1742033445433,-2000.0,0.00036986,120]
[356181819,1742033445443,-2000.0,0.00036986,120]
[356181820,1742033445452,-2000.0,0.00036986,120]
[356181821,1742033445462,-2000.0,0.00036986,120]
[356181822,1742033445471,-2000.0,0.00036986,120]
[356181823,1742033445480,-2000.0,0.00036986,120]
[356181824,1742033445490,-2000.0,0.00036986,120]
[356181825,1742033445498,-2000.0,0.00036986,120]
[356181826,1742033445507,-2000.0,0.00036986,120]
[356181827,1742033445516,-2000.0,0.00036986,120]
[356181828,1742033445526,-2000.0,0.00036986,120]
[356181829,1742033445536,-2000.0,0.00036986,120]
[356181830,1742033445544,-2000.0,0.00036986,120]
[356181831,1742033445554,-2000.0,0.00036986,120]
[356181832,1742033445563,-2000.0,0.00036986,120]
[356181833,1742033445573,-2000.0,0.00036986,120]
[356181834,1742033445582,-2000.0,0.00036986,120]
[356181835,1742033445591,-2000.0,0.00036986,120]
[356181836,1742033445601,-2000.0,0.00036986,120]
[356181837,1742033445611,-2000.0,0.00036986,120]
[356181838,1742033445620,-2000.0,0.00036986,120]
[356181839,1742033445629,-670.96541002,0.00036986,120]
[356181840,1742033445639,-151.0,0.0003699,7]
[356181841,1742033445648,-30158.7379703,0.0003699,3]
[356181842,1742033445657,-150.0,0.00036991,2]
[356181843,1742033445667,-193.725463,0.00036997,2]
[356181844,1742033445676,-614.9799,0.00036997,2]
[356181845,1742033445686,-190.77522227,0.00036998,2]
[356181846,1742033445696,-150.0,0.00036998,2]
[356181847,1742033445894,-46547.40493638,0.00037,2]
[356181848,1742033445951,-200.0,0.00037,2]
[356181849,1742033445961,-213.0,0.00037,2]
[356181850,1742033445971,-208.0,0.00037,30]
[356181851,1742033445981,-207.0,0.00037,2]
[356181852,1742033445991,-153.5966169,0.00037027,2]
[356181853,1742033446000,-205.071152,0.00037052,7]
[356181854,1742033446010,-205.071152,0.00037052,7]
[356181855,1742033446020,-151.0,0.00037052,7]
[356181856,1742033446029,-384.3624358,0.00037063,2]
[356181857,1742033446039,-2184.43885,0.00037088,30]
[356181858,1742033446049,-10686.2302167,0.0003718,3]
[356181860,1742033446059,-10052.9126568,0.0003719,3]
[356181862,1742033446069,-1318.84983478,0.000372,103]
[356181863,1742033446079,-1318.84983476,0.000372,103]
[356181864,1742033446088,-1318.84983476,0.000372,103]
[356181865,1742033446098,-150.91499657,0.00037231,2]
[356181866,1742033446108,-150.4752702,0.0003725,7]
[356181867,1742033446118,-2184.43885,0.00037288,30]
[356181868,1742033446128,-2184.43885,0.00037488,30]
[356181869,1742033446138,-10686.2302167,0.0003756,3]
[356181870,1742033446148,-151.0,0.0003757,7]
[356181871,1742033446158,-10052.9126568,0.0003757,3]
[356181872,1742033446167,-250.0,0.0003758,2]
[356181873,1742033446177,-160.41,0.00037587,2]
[356181874,1742033446187,-4163.70212101,0.0003759,2]
[356181875,1742033446197,-1000.0,0.00037646,2]
[356181876,1742033446208,-2184.43885,0.00037688,30]
[356181877,1742033446217,-166.76263917,0.000378,2]
[356181878,1742033446227,-154.54,0.00037824,2]
[356181879,1742033446237,-10686.2302167,0.00037858,3]
[356181880,1742033446247,-10052.9126568,0.00037869,3]
[356181881,1742033446257,-3125.67,0.00037881,2]
[356181882,1742033446267,-2184.43885,0.00037888,30]
[356181883,1742033446277,-2800.0,0.000379,13]
[356181884,1742033446287,-5194.3081122,0.00037921,2]
[356181885,1742033446297,-10686.2302167,0.00037921,3]
[356181886,1742033446307,-491.34949606,0.00037924,2]
[356181887,1742033446317,-10052.9126568,0.00037931,3]
[356181888,1742033446326,-12423.59807773,0.00037941,2]
[356181889,1742033446336,-2177.79048291,0.00038,2]
[356181890,1742033446350,-500.0,0.00038,120]
[356181891,1742033446361,-831.91820415,0.00038,120]
[356181892,1742033446370,-150.91499657,0.00038083,120]
[356181893,1742033446379,-2184.43885,0.00038088,30]
[356181894,1742033446389,-2694.82006788,0.00038104,45]
[356181895,1742033446398,-185.5,0.00038128,2]
[356181896,1742033446408,-358.37,0.00038213,120]
[356181897,1742033446417,-243.21185646,0.00038246,2]
[356181898,1742033446426,-10686.2302167,0.00038278,3]
[356181899,1742033446435,-2184.43885,0.00038288,30]
[356181900,1742033446444,-10052.9126568,0.00038315,3]
[356181901,1742033446454,-10686.2302167,0.00038315,3]
[356181902,1742033446464,-20105.8253135,0.00038326,3]
[356181903,1742033446473,-21372.4604334,0.00038326,3]
[356181904,1742033446483,-30158.7379703,0.00038335,3]
[356181905,1742033446492,-21372.4604334,0.00038335,3]
[356181906,1742033446502,-10052.9126568,0.00038336,3]
[356181907,1742033446511,-205.071152,0.00038336,7]
[356181908,1742033446521,-205.071152,0.00038336,7]
[356181909,1742033446530,-151.0,0.00038336,7]
[356181910,1742033446540,-150.0,0.00038341,120]
[356181911,1742033446549,-500.0,0.00038345,120]
[356181912,1742033446558,-999.0,0.00038345,120]
[356181913,1742033446567,-50264.5632838,0.00038345,3]
[356181914,1742033446576,-64117.3813001,0.00038345,3]
[356181915,1742033446586,-613.96185048,0.00038345,21]
[356181916,1742033446595,-22710.33675597,0.00038345,21]
[356181917,1742033447211,-651.1875,0.00036633,5]
[356181918,1742033447239,-861.238289,0.00036633,5]
[356181921,1742034309562,80000.0,0.0001,2]
[356181922,1742034309592,240394.33625212,0.0001,2]
[356181942,1742034632120,-300.0,9.999e-05,2]
[356181944,1742034632129,-150.0,9.999e-05,2]
[356181945,1742034632139,-101.93113899,9.999e-05,2]
[356181946,1742034632197,-122.97397269,9.999e-05,2]
[356181947,1742034632206,-2265.8260274,0.0001,2]
[356181948,1742034632218,-4547.26743359,0.0001,2]
[356181949,1742034632255,-599.48659287,0.0001,2]
[356181950,1742034632266,-3777.19374894,0.0001,2]
[356181951,1742034632276,-3700.0,0.0001,2]
[356181952,1742034632286,-6766.16048562,0.0001,2]
[356181953,1742034632297,-4947.25262297,0.0001,2]
[356181954,1742034632308,-639.900128,0.0001,2]
[356181955,1742034632323,-2080.77168883,0.0001,2]
[356181957,1742034632377,-13427.43366975,0.0001,2]
[356181958,1742034632388,-2463.44849996,0.0001,2]
[356181959,1742034632398,-592.36206145,0.0001,2]
[356181960,1742034632408,-7933.01844227,0.0001,2]
[356181961,1742034632418,-762.17542217,0.0001,2]
[356181962,1742034632435,-475.47500001,0.0001,2]
[356181967,1742034638028,-417.59,0.0001,2]
[356181968,1742034638040,-547.35,0.0001,2]
[356181969,1742034638092,-1586.73501147,0.0001,2]
[356181970,1742034638103,-334.47,0.0001,2]
[356181971,1742034638150,-13401.88,0.0001,2]
[356181972,1742034638211,-74458.78506984,0.0001,2]
[356181973,1742034638222,-143190.27144365,0.0001,2]
[356181974,1742034638274,-3928.34057448,0.0001,2]
[356181979,1742034640214,-411.31082313,0.0001,2]
[356181980,1742034640273,-615.6505,0.0001,2]
[356181981,1742034640304,-565.32665385,0.0001,2]
[356181982,1742034640315,-4555.55,0.0001,2]
[356181983,1742034640333,-612.38466475,0.0001,2]
[356181984,1742034640426,-416.59088653,0.0001,2]
[356181985,1742034640455,-58749.13786081,0.0001,2]
[356181986,1742034640466,-449.08422223,0.0001,2]
[356181987,1742034640570,-9609.59999992,0.0001,2]
[356181988,1742034640582,-121589.33802571,0.0001,2]
[356182014,1742034643187,-8812.05269706,0.0001,2]
[356182015,1742034643243,-21230.10760552,0.0001,2]
[356182032,1742034693896,-350.0,9.99e-05,2]
[356182033,1742034725138,-300.0,9.99e-05,2]
[356182034,1742035797361,-2727.39812289,9.99e-05,2]
[356182035,1742035797386,-789.62772937,9.999e-05,2]
[356182036,1742035797424,-150.0,9.999e-05,2]
[356182037,1742035797457,-300.0,9.999e-05,2]
[356182038,1742035797485,-1032.76733183,0.0001,2]
[356182039,1742035797517,-4999.79318409,0.0001,2]
[356182040,1742035797561,-4337.69420781,0.0001,2]
[356182043,1742035832355,-261.96657699,9.999e-05,2]
[356182044,1742035832368,-38.03342301,9.999e-05,2]
[356182045,1742035832380,-15422.56657699,0.0001,2]
[356182046,1742035832394,-2085.94825,0.0001,2]
[356182047,1742035832408,-224890.3143126,0.0001,2]
[356182048,1742035832419,-156.66959821,0.0001,2]
[356182049,1742035832430,-538.64153023,0.00010645,2]
[356182050,1742035832441,-495.4304328,0.00010645,2]
[356182051,1742035832453,-150.0,0.00011,2]
[356182052,1742035832464,-550.0,0.00011,2]
[356182053,1742035832474,-7454.15884671,0.00011099,2]
[356182054,1742035832485,-157.999368,0.0001168,2]
[356182055,1742035832496,-2520.12641088,0.000118,2]
[356182056,1742035832508,-7454.15884663,0.00014025,2]
[356182057,1742035832519,-24438.44461116,0.00016,3]
[356182058,1742035832530,-166.03096226,0.0001805,2]
[356182059,1742035832542,-7454.15884663,0.0001815,2]
[356182060,1742035832553,-150.0,0.00018425,2]
[356182061,1742035832563,-550.0,0.00018425,2]
[356182062,1742035832574,-153.97,0.000186,2]
[356182063,1742035832586,-11020.71309316,0.00018632,3]
[356182064,1742035832598,-2092.40673839,0.00018634,3]
[356182065,1742035832610,-2092.40673838,0.00018634,3]
[356182066,1742035832622,-4712.68757326,0.000199,3]
[356182067,1742035832633,-177.71,0.00020378,2]
[356182068,1742035832645,-301.26164163,0.00020618,2]
[356182069,1742035832656,-3698.81,0.00021757,2]
[356182070,1742035832667,-8759.57,0.00021757,2]
[356182071,1742035832679,-3017.2,0.00021757,2]
[356182072,1742035832691,-1668.31,0.00021757,2]
[356182073,1742035832702,-150.99,0.00021757,2]
[356182074,1742035832713,-7454.15884663,0.00022274,2]
[356182075,1742035832724,-4118.19739617,0.00022413,2]
[356182076,1742035832734,-223.63,0.00022513,2]
[356182077,1742035832745,-250.0,0.00023294,2]
[356182078,1742035832755,-166.03096226,0.00023358,2]
[356182079,1742035832764,-500.0,0.00023522,2]
[356182080,1742035832774,-23900.0,0.00024176,2]
[356182081,1742035832783,-1626.634,0.00024258,6]
[356182082,1742035832793,-445.65,0.00024367,2]
[356182083,1742035832803,-1100.0,0.00024457,2]
[356182084,1742035832813,-1000.0,0.00024552,2]
[356182085,1742035832823,-152.3,0.00024574,2]
[356182086,1742035832832,-162.54,0.00024623,2]
[356182087,1742035832842,-223.63,0.00024777,2]
[356182088,1742035832852,-150.0,0.00025052,2]
[356182089,1742035832862,-4118.1973961,0.00025147,2]
[356182090,1742035832871,-278.11,0.00025571,2]
[356182091,1742035832881,-152.6,0.00026031,30]
[356182092,1742035832891,-7454.15884663,0.00026399,2]
[356182093,1742035832901,-500.0,0.00026533,2]
[356182094,1742035832911,-167.75,0.00026561,2]
[356182095,1742035832921,-589.69,0.00026849,2]
[356182096,1742035832930,-220.23,0.00026849,2]
[356182097,1742035832940,-167.75,0.00027004,2]
[356182098,1742035832950,-2776.12,0.00027014,2]
[356182099,1742035832960,-223.63,0.00027041,2]
[356182100,1742035833335,-1007.71,0.00027041,2]
[356182101,1742035833460,-150.91499657,0.000272,2]
[356182102,1742035833486,-150.91499657,0.000272,2]
[356182103,1742035833504,-150.91499657,0.000272,2]
[356182104,1742035833513,-150.91499657,0.000272,2]
[356182105,1742035833523,-167.75,0.00027446,2]
[356182106,1742035833533,-1000.0,0.00027621,2]
[356182107,1742035833543,-4118.1973961,0.00027882,2]
[356182108,1742035833552,-167.75,0.00027889,2]
[356182109,1742035833561,-161.05618332,0.00028,60]
[356182110,1742035833571,-2387.77726502,0.00028586,2]
[356182111,1742035833581,-166.03096226,0.00028667,2]
[356182112,1742035833592,-200.0,0.00028734,2]
[356182113,1742035833601,-8739.27894224,0.00029295,2]
[356182114,1742035833611,-223.63,0.00029305,2]
[356182115,1742035833621,-10514.45419403,0.00029586,3]
[356182116,1742035833631,-359.37366162,0.00029586,2]
[356182117,1742035833641,-14736.81395145,0.00029586,3]
[356182118,1742035833650,-910.56893881,0.00029586,3]
[356182119,1742035833660,-2034.16990391,0.00029586,3]
[356182120,1742035833669,-150.91499657,0.00029771,2]
[356182121,1742035833679,-8739.27894224,0.0002987,2]
[356182122,1742035833689,-24950.17600322,0.0002988,2]
[356182123,1742035833699,-501.0,0.00029973,2]
[356182124,1742035833709,-500.0,0.0003,2]
[356182125,1742035833719,-7454.15884663,0.00030524,2]
[356182126,1742035833729,-4118.1973961,0.00030616,2]
[356182127,1742035833739,-1000.0,0.0003069,2]
[356182128,1742035833749,-152.3,0.00030718,120]
[356182129,1742035833758,-8739.27894224,0.0003119,2]
[356182130,1742035833769,-1000.0,0.000312,2]
[356182131,1742035833779,-1000.0,0.000312,2]
[356182132,1742035833790,-1000.0,0.000312,2]
[356182133,1742035833800,-1000.0,0.000312,2]
[356182134,1742035833811,-1000.0,0.000312,2]
[356182135,1742035833821,-1000.0,0.000312,2]
[356182136,1742035833831,-1000.0,0.000312,2]
[356182137,1742035833842,-1000.0,0.000312,2]
[356182138,1742035833853,-1000.0,0.000312,2]
[356182139,1742035833863,-1000.0,0.000312,2]
[356182140,1742035833874,-1000.0,0.000312,2]
[356182141,1742035833884,-1008.0,0.000312,2]
[356182142,1742035833894,-5000.0,0.000315,3]
[356182143,1742035833904,-223.63,0.00031569,2]
[356182144,1742035833914,-1000.0,0.00032013,5]
[356182145,1742035833923,-1626.0,0.000321,2]
[356182146,1742035833933,-176.38,0.00032361,120]
[356182147,1742035833943,-589.69,0.00032646,2]
[356182148,1742035833954,-220.23,0.00032646,2]
[356182149,1742035833963,-37173.54704631,0.0003286,21]
[356182150,1742035834010,-1546.39194612,0.0003286,21]
[356182151,1742035834062,-3614.97335,0.0003286,21]
[356182152,1742035834097,-34876.44221045,0.0003286,21]
[356182153,1742035834109,-24654.78768023,0.0003286,21]
[356182157,1742035838229,-227.34995449,0.00018631,2]
[356182158,1742035838240,-264.65004467,0.00027397,2]
[356182159,1742035838337,-235.34995533,0.00027397,2]
[356182160,1742035838348,-500.0,0.00027397,2]
[356182161,1742035838358,-337.00004467,0.00027397,2]
[356182162,1742035838443,-162.99995533,0.00027397,2]
[356182163,1742035838454,-500.0,0.00027397,2]
[356182164,1742035838463,-500.0,0.00027397,2]
[356182165,1742035838473,-199.74102744,0.00027397,2]
[356182166,1742035838483,-500.0,0.00027397,2]
[356182167,1742035838492,-500.0,0.00027397,2]
[356182168,1742035838503,-500.0,0.00027397,2]
[356182169,1742035838513,-222.82,0.00029611,2]
[356182170,1742035838523,-6174.49724967,0.0003286,21]
[356182177,1742035840528,-381.93526788,0.0003286,21]
[356182178,1742035840634,-482.56,0.0003286,21]
[356182179,1742035840646,-465.108,0.0003286,21]
[356182180,1742035840657,-5804.6053512,0.0003286,21]
[356182181,1742035840853,-1710.19466749,0.0003286,21]
[356182182,1742035840933,-34403.02563865,0.0003286,21]
[356182183,1742035840952,-1203.2499875,0.0003286,21]
[356182201,1742035843345,-9246.53423268,0.0003286,21]
[356182202,1742035843399,-11841.0,0.0003286,21]
[356182203,1742035846257,-51784.2662205,0.0003286,21]
[356182204,1742035846267,-8739.27894224,0.0003286,2]
[356182205,1742035846277,-651.07590015,0.0003287,21]
[356182206,1742035846287,-6307.0,0.0003287,5]
[356182207,1742035846296,-1100.0,0.000329,12]
[356182208,1742035846305,-150.92,0.00033141,2]
[356182209,1742035846315,-150.92,0.00033141,2]
[356182210,1742035846324,-13404.37912367,0.00033151,2]
[356182211,1742035846337,-857.82849578,0.00033151,2]
[356182212,1742035846349,-1049.99669866,0.00033151,2]
[356182218,1742036024905,250.0,9e-05,2]
[356182229,1742037031494,-250.0,0.00019,2]
[356182230,1742037031505,-12853.52956185,0.00019,2]
[356182231,1742037031518,-300.0,0.00021,2]
[356182232,1742037031527,-350.0,0.00023,2]
[356182233,1742037031537,-300.0,0.0002444,2]
[356182234,1742037031547,-1689.465,0.00024441,7]
[356182235,1742037031559,-10141.01,0.00024441,2]